fUST/lending_fUST_20241106
["ID","MTS","AMOUNT","RATE_DAILY","PERIOD"]
[341423072,1730874639290,-600.0,0.00031241,2]
[341423074,1730874639299,-5918.59443739,0.00031255,2]
[341423076,1730874639309,-505.22714609,0.00031275,5]
[341423078,1730874639319,-1000.0,0.00031342,5]
[341423080,1730874639331,-21209.94352742,0.00031482,2]
[341423082,1730874639341,-150.112233,0.000315,19]
[341423084,1730874639350,-587.0,0.00031644,2]
[341423086,1730874639360,-163.0,0.00031644,2]
[341423088,1730874639371,-500.0,0.00031673,5]
[341423090,1730874639380,-500.0,0.0003168,2]
[341423092,1730874639390,-55555.0,0.0003168,3]
[341423094,1730874639399,-1058.71882482,0.0003168,2]
[341423096,1730874639409,-2286.68156787,0.0003168,2]
[341423098,1730874639418,-3494.85112885,0.000317,3]
[341423100,1730874639427,-150.112233,0.000317,18]
[341423102,1730874639437,-150.112233,0.000317,13]
[341423105,1730874639446,-150.112233,0.000317,19]
[341423107,1730874639456,-150.112233,0.000317,15]
[341423109,1730874639465,-150.112233,0.000317,18]
[341423111,1730874639474,-150.112233,0.000317,19]
[341423113,1730874639484,-3000.0,0.000317,9]
[341423115,1730874639493,-3000.0,0.0003171,9]
[341423117,1730874639503,-3000.0,0.0003172,9]
[341423119,1730874639513,-1500.0,0.00031725,5]
[341423121,1730874639522,-3000.0,0.0003173,9]
[341423124,1730874639531,-3000.0,0.0003174,9]
[341423126,1730874639541,-3000.0,0.0003175,9]
[341423128,1730874639550,-3000.0,0.0003176,9]
[341423130,1730874639559,-3000.0,0.0003177,9]
[341423132,1730874639569,-502.49090858,0.00031773,5]
[341423134,1730874639580,-502.54176911,0.00031773,5]
[341423135,1730874639589,-384.4792123,0.00031773,5]
[341423136,1730874639699,-500.0,0.00031773,5]
[341423137,1730874639708,-500.0,0.00031773,5]
[341423138,1730874639718,-177094.51328749,0.0003178,10]
[341423139,1730874639731,-47060.21852654,0.0003178,10]
[341423221,1730874640588,-1054.74703924,0.000316,14]
[341423223,1730874640597,-130173.38121926,0.0003178,10]
[341423225,1730874640613,-5223.25649,0.0003178,10]
[341423473,1730874644417,-425.38400912,0.00028973,5]
[341423475,1730874644428,-74.61599088,0.00028973,5]
[341423477,1730874644438,-500.0,0.00028973,5]
[341423479,1730874644447,-615.97358228,0.00030342,5]
[341423482,1730874644457,-6252.43610815,0.0003177,10]
[341423484,1730874644469,-428.9364,0.0003177,10]
[341423639,1730874646138,-8255.38749185,0.0003177,10]
[341423641,1730874646148,-6365.51250815,0.0003178,10]
[341423643,1730874646167,-156517.94622425,0.0003178,10]
[341423649,1730874646211,-2064.19843388,0.0003178,10]
[341423651,1730874646223,-16552.23234489,0.0003178,10]
[341425767,1730874854023,167.398456,0.00013973,2]
[341425769,1730874938715,1169.27083333,0.00020816,2]
[341425777,1730875539544,167.398456,0.00013973,2]
[341425786,1730875550812,1169.27083333,0.00020816,2]
[341425823,1730875734059,540.0,0.00020816,2]
[341425851,1730875832546,-465.01061128,0.00024958,2]
[341425853,1730875832556,-1117.2664737,0.00026509,2]
[341425855,1730875832565,-300.0,0.00027105,2]
[341425857,1730875832575,-300.0,0.00027105,2]
[341425858,1730875832584,-5180.41461732,0.00027106,2]
[341425968,1730875838875,-19719.58538268,0.00027106,2]
[341425969,1730875838884,-500.0,0.00027397,2]
[341425970,1730875838894,-500.0,0.00027397,2]
[341425971,1730875838903,-500.0,0.00027397,2]
[341425972,1730875838913,-500.0,0.00027397,2]
[341425973,1730875838923,-500.0,0.00027397,2]
[341425974,1730875838932,-464.71194933,0.00027397,2]
[341425975,1730875838942,-169.2,0.00029089,21]
[341425976,1730875838951,-420.0,0.000293,2]
[341425977,1730875838961,-420.0,0.00029816,2]
[341425978,1730875838970,-2942.76995059,0.000299,2]
[341425979,1730875838980,-150.20640634,0.0003,5]
[341425980,1730875838990,-172.0,0.0003,120]
[341425981,1730875838999,-162.0,0.0003,2]
[341425982,1730875839009,-1709.0,0.0003,2]
[341425983,1730875839019,-163.0,0.0003,2]
[341425984,1730875839029,-205.59640919,0.00030137,2]
[341425985,1730875839038,-163.0,0.00030411,2]
[341425986,1730875839048,-200.0,0.000309,120]
[341425987,1730875839058,-500.0,0.0003101,30]
[341425988,1730875839068,-500.0,0.0003101,30]
[341425990,1730875839078,-500.0,0.0003101,30]
[341425992,1730875839087,-701.11087916,0.0003101,30]
[341425994,1730875839097,-500.0,0.0003101,30]
[341426009,1730875839225,-549.73702654,0.0003101,30]
[341426011,1730875839235,-926.93979393,0.0003101,7]
[341426013,1730875839245,-984.07473524,0.00031221,2]
[341426346,1730875843598,-4934.51970214,0.00031221,2]
[341426347,1730875843608,-2942.76995058,0.0003131,2]
[341426348,1730875843618,-712.25419387,0.00031445,2]
[341426366,1730875846271,-311.99399355,0.00027005,2]
[341426367,1730875846282,-166.666666,0.00028864,2]
[341426368,1730875846298,-100.86637824,0.00030832,2]
[341426369,1730875846473,-65.80028776,0.00030832,2]
[341426371,1730875846484,-909.20910627,0.00031065,10]
[341426373,1730875846495,-1060.74395732,0.00031376,12]
[341426375,1730875846506,-5206.34024352,0.00031445,2]
[341426377,1730875846517,-396.54708441,0.00031579,2]
[341426379,1730875846527,-500.0,0.00031579,2]
[341426381,1730875846539,-183.06742163,0.00031579,2]
[341426383,1730875846549,-352.51853263,0.00031579,2]
[341426385,1730875846558,-500.0,0.00031579,2]
[341426387,1730875846568,-194.52025412,0.00031579,2]
[341426389,1730875846578,-500.0,0.00031579,2]
[341426391,1730875846587,-500.0,0.00031579,2]
[341426393,1730875846596,-500.0,0.00031579,2]
[341426394,1730875846606,-500.0,0.00031579,2]
[341426396,1730875846617,-500.0,0.00031579,2]
[341426398,1730875846627,-447.09695091,0.00031579,2]
[341426401,1730875846640,-52.90304909,0.00031579,2]
[341426403,1730875846652,-866.72959269,0.00031581,2]
[341426455,1730876045718,3786.02,0.00020816,2]
[341426456,1730876163395,1169.27083333,0.00020816,2]
[341426470,1730876774262,1169.27083333,0.00020816,2]
[341426542,1730877032456,-465.00108759,0.00023446,2]
[341426543,1730877032466,-166.666666,0.00024269,2]
[341426544,1730877032477,-465.00005438,0.00024618,2]
[341426545,1730877032487,-178.9415171,0.00024795,2]
[341426546,1730877032497,-300.0,0.00025842,2]
[341426547,1730877032507,-300.0,0.00025842,2]
[341426548,1730877032517,-338.27974395,0.00025842,2]
[341426549,1730877032528,-158.26376125,0.00025842,2]
[341426550,1730877032537,-500.0,0.00025842,2]
[341426551,1730877032547,-306.92367481,0.00025842,2]
[341426552,1730877032556,-2006.37712492,0.00025843,2]
[341426553,1730877032568,-451.08018413,0.00025843,2]
[341426554,1730877032580,-477.58602924,0.00025843,2]
[341426555,1730877032593,-319.31252,0.00025843,2]
[341426572,1730877038717,-21645.64414171,0.00025843,2]
[341426573,1730877038729,-709.15585829,0.00026123,2]
[341426590,1730877042496,-1592.62118691,0.00026123,2]
[341426591,1730877042506,-329.41243881,0.00027397,2]
[341426592,1730877042516,-213.58643741,0.00027972,2]
[341426610,1730877043473,-206.41356259,0.00027972,2]
[341426612,1730877043483,-420.0,0.00028426,2]
[341426613,1730877043492,-205.371,0.00028744,20]
[341426614,1730877043501,-162.0,0.0003,2]
[341426615,1730877043511,-860.41543711,0.0003,2]
[341426616,1730877043522,-1109.70371348,0.0003,2]
[341426617,1730877043532,-164.0,0.0003,2]
[341426618,1730877043542,-151.0,0.0003,120]
[341426619,1730877043551,-198.85615717,0.00030137,2]
[341426620,1730877043561,-155.727,0.0003024,10]
[341426621,1730877043571,-587.0,0.00030276,2]
[341426622,1730877043580,-617.95986262,0.00030861,7]
[341426623,1730877043590,-500.0,0.0003101,30]
[341426624,1730877043600,-500.0,0.0003101,30]
[341426625,1730877043609,-500.0,0.0003101,30]
[341426626,1730877043619,-155.675,0.0003108,5]
[341426627,1730877043628,-150.112233,0.000312,34]
[341426628,1730877043638,-587.0,0.00031269,2]
[341426629,1730877043649,-150.112233,0.000313,77]
[341426630,1730877043803,-150.112233,0.000314,43]
[341426631,1730877043814,-150.112233,0.000315,55]
[341426632,1730877043824,-500.0,0.0003158,2]
[341426633,1730877043834,-277.58295909,0.0003158,2]
[341426634,1730877043843,-297.76474759,0.0003158,2]
[341426635,1730877043853,-554.38162805,0.0003158,2]
[341426653,1730877046500,-23.76556709,0.0003158,2]
[341426654,1730877046511,-389.68786488,0.0003158,2]
[341426655,1730877046564,-164.0,0.0003,2]
[341426656,1730877046574,-110.31213512,0.0003158,2]
[341426657,1730877046584,-533.44461313,0.0003158,2]
[341426658,1730877046594,-500.0,0.0003158,2]
[341426659,1730877046604,-500.0,0.0003158,2]
[341426660,1730877046613,-5543.47329035,0.00031581,2]
[341426667,1730877386015,1169.27083333,0.00020816,2]
[341426668,1730877390923,195.4145,0.0001814,2]
[341426671,1730877872420,175.205452,0.00013973,2]
[341426679,1730877997110,1169.27083333,0.00020816,2]
[341426705,1730878080037,144547.8736519,0.0001,2]
[341426715,1730878122638,2112.29559896,0.00020377,2]
[341426832,1730878236878,-185.15345821,0.00024327,2]
[341426835,1730878236888,-174.0543092,0.00024427,2]
[341426837,1730878236898,-846.647358,0.0002506,2]
[341426839,1730878236907,-846.647358,0.00025745,2]
[341426841,1730878236918,-300.0,0.00026059,2]
[341426843,1730878236928,-300.0,0.00026059,2]
[341426845,1730878236937,-500.0,0.0002606,2]
[341426847,1730878236946,-500.0,0.0002606,2]
[341426849,1730878236956,-500.0,0.0002606,2]
[341426851,1730878236965,-500.0,0.0002606,2]
[341426853,1730878236975,-500.0,0.0002606,2]
[341426855,1730878236984,-269.50374701,0.0002606,2]
[341426857,1730878236993,-3573.48538898,0.0002606,2]
[341426859,1730878237003,-3722.45616649,0.00026061,2]
[341426923,1730878238910,-14105.66791907,0.00026061,2]
[341426924,1730878238924,-254.63533274,0.00026061,2]
[341426925,1730878238936,-1700.0,0.00026061,2]
[341426926,1730878238948,-5117.2405817,0.00026061,2]
[341426927,1730878238957,-2026.34007068,0.00026118,2]
[341426928,1730878238969,-333.04240939,0.00026118,2]
[341426929,1730878238980,-100.25281665,0.00026118,2]
[341426930,1730878238990,-846.647358,0.0002643,2]
[341426931,1730878238999,-2459.63529666,0.00028068,2]
[341426932,1730878239008,-420.0,0.000282,2]
[341426933,1730878239017,-411.97324175,0.000282,2]
[341426934,1730878239027,-380.0,0.00028665,2]
[341426935,1730878239036,-195.4145,0.0002879,2]
[341426936,1730878239046,-164.297,0.00029308,22]
[341426937,1730878239055,-500.0,0.000294,5]
[341426938,1730878239065,-1000.75394748,0.00029999,2]
[341426939,1730878239075,-140.35105153,0.0003,5]
[341426940,1730878239087,-2623.12308923,0.0003,5]
[341426941,1730878239096,-158.87175,0.0003,2]
[341426942,1730878239106,-158.87175,0.0003,2]
[341426943,1730878239115,-161.0,0.0003,2]
[341426944,1730878239125,-164.0,0.0003,2]
[341426945,1730878239134,-326.0,0.0003,2]
[341426946,1730878239144,-2459.63529666,0.00030019,2]
[341426947,1730878239154,-192.3368769,0.00030137,2]
[341426948,1730878239163,-587.0,0.00030517,2]
[341426949,1730878239177,-187.6059528,0.0003065,2]
[341426950,1730878239186,-1000.0,0.0003077,5]
[341426951,1730878239195,-500.0,0.000309,120]
[341426952,1730878239205,-289.292125,0.00031,55]
[341426953,1730878239214,-150.112233,0.00031,44]
[341426954,1730878239223,-150.112233,0.00031,33]
[341426955,1730878239232,-216.41012436,0.00031,2]
[341426956,1730878239241,-500.0,0.0003101,30]
[341426957,1730878239253,-150.112233,0.000315,43]
[341426958,1730878239265,-150.112233,0.000315,44]
[341426959,1730878239274,-3000.0,0.000315,8]
[341426960,1730878239286,-3000.0,0.0003151,8]
[341426961,1730878239295,-208.43532332,0.00031519,2]
[341426962,1730878239305,-373.41122919,0.00031519,2]
[341426963,1730878239314,-194.30807136,0.00031519,2]
[341426964,1730878239325,-500.0,0.00031519,2]
[341426965,1730878239335,-500.0,0.00031519,2]
[341426966,1730878239344,-500.0,0.00031519,2]
[341426967,1730878239354,-304.7030366,0.00031519,2]
[341426968,1730878239364,-1839.29344953,0.0003152,8]
[341427017,1730878243441,-1160.70655047,0.0003152,8]
[341427019,1730878243452,-3000.0,0.0003153,8]
[341427021,1730878243462,-3000.0,0.0003154,8]
[341427023,1730878243472,-3000.0,0.0003155,8]
[341427025,1730878243482,-2299.39775696,0.0003156,8]
[341427036,1730878243571,-700.60224304,0.0003156,8]
[341427038,1730878243580,-1855.78616426,0.0003156,2]
[341427040,1730878243589,-3000.0,0.0003157,8]
[341427042,1730878243599,-3494.85112885,0.0003158,3]
[341427045,1730878243608,-3000.0,0.0003158,8]
[341427048,1730878243619,-14799.74064438,0.00031581,2]
[341427050,1730878243628,-3000.0,0.0003159,8]
[341427052,1730878243639,-1855.78616422,0.00031595,2]
[341427055,1730878243649,-3000.0,0.000316,8]
[341427057,1730878243659,-3000.0,0.0003161,8]
[341427059,1730878243669,-3000.0,0.0003162,8]
[341427061,1730878243680,-3000.0,0.0003163,8]
[341427063,1730878243689,-1855.78616422,0.0003163,2]
[341427065,1730878243698,-3000.0,0.0003164,8]
[341427067,1730878243707,-161.0,0.00031644,2]
[341427069,1730878243716,-164.0,0.00031644,2]
[341427071,1730878243726,-3000.0,0.0003165,8]
[341427073,1730878243735,-3000.0,0.0003166,9]
[341427075,1730878243744,-1855.78616422,0.00031665,2]
[341427077,1730878243753,-600.0,0.00031667,2]
[341427079,1730878243762,-13576.59329771,0.00031668,5]
[341427081,1730878243772,-3000.0,0.0003167,9]
[341427083,1730878243781,-1000.0,0.00031676,2]
[341427085,1730878243790,-320.97984909,0.00031679,2]
[341427087,1730878243799,-2823.57951246,0.00031679,2]
[341427089,1730878243809,-1000.0,0.0003168,2]
[341427091,1730878243818,-3000.0,0.0003168,9]
[341427093,1730878243828,-55555.0,0.0003168,3]
[341427095,1730878243837,-3000.0,0.0003169,9]
[341427097,1730878243847,-500.0,0.000317,2]
[341427099,1730878243856,-150.112233,0.000317,14]
[341427101,1730878243865,-150.112233,0.000317,17]
[341427103,1730878243873,-150.112233,0.000317,17]
[341427105,1730878243883,-150.112233,0.000317,13]
[341427107,1730878243893,-3000.0,0.000317,9]
[341427109,1730878243902,-1855.78616422,0.000317,2]
[341427111,1730878243912,-1000.0,0.00031704,2]
[341427113,1730878243921,-3000.0,0.0003171,9]
[341427115,1730878243932,-3000.0,0.0003172,9]
[341427117,1730878243941,-349.0,0.00031724,14]
[341427119,1730878243951,-3000.0,0.0003173,9]
[341427121,1730878243960,-3000.0,0.0003174,9]
[341427123,1730878243970,-1374.5370817,0.00031747,6]
[341427125,1730878243980,-3000.0,0.0003175,9]
[341427127,1730878243989,-3000.0,0.0003176,9]
[341427129,1730878243998,-3000.0,0.0003177,9]
[341427131,1730878244008,-557.17522074,0.00031773,5]
[341427133,1730878244017,-500.0,0.00031773,5]
[341427135,1730878244027,-500.0,0.00031773,5]
[341427137,1730878244036,-505.22714609,0.00031773,5]
[341427139,1730878244045,-500.0,0.00031773,5]
[341427141,1730878244055,-384.4792123,0.00031773,5]
[341427143,1730878244064,-500.0,0.00031773,5]
[341427145,1730878244074,-500.0,0.00031773,5]
[341427148,1730878244084,-500.0,0.00031773,2]
[341427150,1730878244093,-500.0,0.00031773,5]
[341427152,1730878244104,-150407.31004691,0.0003178,10]
[341427154,1730878244114,-151.60518,0.0003178,7]
[341427156,1730878244123,-151.0,0.0003178,7]
[341427158,1730878244133,-151.0,0.0003178,7]
[341427160,1730878244142,-151.0,0.0003178,7]
[341427162,1730878244152,-165.736647,0.0003178,7]
[341427164,1730878244161,-151.0,0.0003178,7]
[341427166,1730878244172,-151.0,0.0003178,7]
[341427168,1730878244183,-151.0,0.0003178,7]
[341427170,1730878244193,-151.0,0.0003178,7]
[341427172,1730878244203,-151.0,0.0003178,7]
[341427174,1730878244211,-151.0,0.0003178,7]
[341427189,1730878244351,-151.0,0.0003178,7]
[341427191,1730878244362,-151.0,0.0003178,7]
[341427194,1730878244372,-151.0,0.0003178,7]
[341427196,1730878244382,-151.587981,0.0003178,7]
[341427198,1730878244392,-151.61645,0.0003178,7]
[341427199,1730878244404,-151.0,0.0003178,7]
[341427201,1730878244414,-247.034011,0.0003178,7]
[341427204,1730878244425,-151.0,0.0003178,7]
[341427206,1730878244436,-151.0,0.0003178,7]
[341427208,1730878244446,-1146.624139,0.0003178,7]
[341427210,1730878244455,-67.34045559,0.0003178,9]
[341430505,1730878371539,162.597754,0.00013973,2]
[341430507,1730878610229,1169.27083333,0.00020816,2]
[341430508,1730878699486,-303.11517528,0.00025,2]
[341430509,1730878699511,-303.11517528,0.0002525,2]
[341430510,1730878699542,-303.11517528,0.000255,2]
[341430511,1730878718163,-303.11517528,0.0002575,2]
[341430512,1730878718189,-303.11517528,0.00026,2]
[341430513,1730878718214,-454.67276292,0.0002625,4]
[341430514,1730878718239,-454.67276292,0.000265,4]
[341430515,1730878718265,-75.07859776,0.0002666,2]
[341430516,1730878758734,-127.76391624,0.0002666,2]
[341430517,1730878758761,-606.07571426,0.0002675,4]
[341430518,1730878758785,-213.91710057,0.000299,2]
[341430519,1730878758811,-151.0,0.0003,120]
[341430520,1730878758838,-151.0,0.0003,120]
[341430521,1730878834388,-5035.35893264,0.00034563,120]
[341430586,1730879222378,1169.27083333,0.00020816,2]
[341430592,1730879319108,5000.0,0.00020816,2]
[341430593,1730879323174,195.414,0.00018033,2]
[341430594,1730879327425,5000.0,0.00020816,2]
[341430595,1730879336623,5000.0,0.00020816,2]
[341430596,1730879344448,3452.20492699,0.00020816,2]
[341430658,1730879432850,-306.2380536,0.00026868,2]
[341430666,1730879432921,-13526.66596125,0.00026868,2]
[341430668,1730879432934,-10906.38186585,0.00026868,2]
[341430670,1730879432945,-300.0,0.00028207,2]
[341430672,1730879432956,-300.0,0.00028207,2]
[341430674,1730879432966,-500.0,0.000283,5]
[341430676,1730879432975,-1000.0,0.0002967,5]
[341430678,1730879432985,-554.35134119,0.000299,2]
[341430680,1730879432995,-500.0,0.00029989,2]
[341430682,1730879433004,-500.0,0.00029989,2]
[341430684,1730879433014,-263.29212562,0.00029989,2]
[341430686,1730879433024,-274.64882783,0.0002999,2]
[341430688,1730879433033,-2949.80942705,0.0002999,10]
[341430736,1730879437458,-605.0,0.0003,2]
[341430737,1730879437468,-21704.37518542,0.0003,2]
[341430759,1730879438896,-1106.445,0.0003,2]
[341430761,1730879438911,-3108.52974011,0.0003,2]
[341430762,1730879439098,-26330.15803195,0.0003,2]
[341430763,1730879439110,-44221.29373013,0.0003,2]
[341430764,1730879439121,-5879.28,0.0003,2]
[341430765,1730879439133,-48565.91831239,0.0003,2]
[341430766,1730879439142,-158.87175,0.0003,2]
[341430767,1730879439309,-158.87175,0.0003,2]
[341430768,1730879439320,-151.0,0.0003,120]
[341430769,1730879439330,-182.287,0.0003,2]
[341430770,1730879439339,-151.0,0.0003,120]
[341430771,1730879439349,-186.03132405,0.00030137,2]
[341430772,1730879439358,-559.03939791,0.00030137,2]
[341430773,1730879439369,-164.297,0.00030168,25]
[341430774,1730879439378,-554.35134116,0.0003035,2]
[341430775,1730879439387,-605.0,0.00030411,2]
[341430776,1730879439397,-420.0,0.00030457,2]
[341430777,1730879439408,-554.35134116,0.000308,2]
[341430778,1730879439417,-150.112233,0.00031,65]
[341430779,1730879439427,-150.112233,0.00031,44]
[341430780,1730879439436,-150.112233,0.00031,35]
[341430781,1730879439446,-287.0,0.00031028,2]
[341430782,1730879439456,-554.35134116,0.0003125,2]
[341430783,1730879439465,-500.0,0.00031329,5]
[341430784,1730879439474,-500.0,0.00031329,5]
[341430785,1730879439483,-197.794339,0.000314,14]
[341430786,1730879439493,-1000.0,0.000316,2]
[341430787,1730879439502,-150.112233,0.000316,20]
[341430788,1730879439511,-1000.0,0.00031633,2]
[341430789,1730879439520,-605.0,0.00031644,2]
[341430790,1730879439530,-151.0,0.0003168,7]
[341430791,1730879439540,-623.235953,0.0003168,7]
[341430792,1730879439550,-623.235953,0.0003168,7]
[341430793,1730879439561,-151.0,0.0003168,7]
[341430794,1730879439572,-174.470666,0.0003168,7]
[341430795,1730879439582,-174.470666,0.0003168,7]
[341430796,1730879439592,-228.927548,0.0003168,7]
[341430797,1730879439601,-228.927548,0.0003168,7]
[341430798,1730879439611,-3000.0,0.000317,9]
[341430799,1730879439620,-55016.77050448,0.000317,3]
[341430800,1730879439631,-151.0,0.000317,7]
[341430801,1730879439641,-151.0,0.000317,7]
[341430802,1730879439651,-151.0,0.000317,7]
[341430803,1730879439662,-151.0,0.000317,7]
[341430804,1730879439671,-151.0,0.000317,7]
[341430805,1730879439681,-151.0,0.000317,7]
[341430806,1730879439690,-267.789892,0.000317,7]
[341430807,1730879439700,-154.718419,0.000317,7]
[341430808,1730879439711,-162.892431,0.000317,7]
[341430809,1730879439721,-162.892431,0.000317,7]
[341430810,1730879439732,-151.0,0.000317,7]
[341430811,1730879439741,-788.693941,0.000317,7]
[341430812,1730879439751,-788.693941,0.000317,7]
[341430813,1730879439761,-151.0,0.000317,7]
[341430814,1730879439771,-554.35134116,0.000317,2]
[341430815,1730879439781,-3000.0,0.0003171,9]
[341430816,1730879439791,-3000.0,0.0003172,9]
[341430817,1730879439805,-151.0,0.0003173,7]
[341430818,1730879439814,-226.418533,0.0003173,7]
[341430819,1730879439826,-151.0,0.0003173,3]
[341430820,1730879439835,-3000.0,0.0003173,9]
[341430821,1730879439845,-151.0,0.0003173,7]
[341430822,1730879439854,-1056.49676548,0.00031734,2]
[341430823,1730879439863,-3000.0,0.0003174,9]
[341430824,1730879439874,-3000.0,0.0003175,9]
[341430825,1730879439886,-3000.0,0.0003176,9]
[341430826,1730879439896,-600.0,0.00031769,2]
[341430827,1730879439905,-151.0,0.0003177,7]
[341430828,1730879439917,-151.0,0.0003177,7]
[341430829,1730879439928,-275.749633,0.0003177,7]
[341430830,1730879439938,-275.749633,0.0003177,7]
[341430831,1730879439949,-151.0,0.0003177,7]
[341430832,1730879439959,-151.961016,0.0003177,7]
[341430833,1730879439969,-151.0,0.0003177,7]
[341430834,1730879439978,-623.235953,0.0003177,7]
[341430835,1730879439987,-623.235953,0.0003177,7]
[341430836,1730879439996,-151.0,0.0003177,7]
[341430837,1730879440006,-3000.0,0.0003177,9]
[341430838,1730879440015,-174.470666,0.0003177,7]
[341430839,1730879440026,-174.470666,0.0003177,7]
[341430840,1730879440035,-228.927548,0.0003177,7]
[341430841,1730879440044,-228.927548,0.0003177,7]
[341430842,1730879440054,-219.922894,0.0003177,7]
[341430843,1730879440063,-219.922894,0.0003177,7]
[341430844,1730879440078,-151.0,0.0003177,7]
[341430845,1730879440088,-151.0,0.0003177,7]
[341430846,1730879440107,-151.0,0.0003177,7]
[341430847,1730879440119,-151.0,0.0003177,7]
[341430848,1730879440128,-151.0,0.0003177,7]
[341430849,1730879440138,-151.0,0.0003177,7]
[341430850,1730879440149,-154.305075,0.0003177,7]
[341430851,1730879440159,-279.088266,0.0003177,7]
[341430852,1730879440168,-151.0,0.0003177,7]
[341430853,1730879440178,-151.0,0.0003177,7]
[341430854,1730879440187,-162.892431,0.0003177,7]
[341430855,1730879440198,-162.892431,0.0003177,7]
[341430856,1730879440207,-151.0,0.0003177,7]
[341430857,1730879440217,-151.0,0.0003177,7]
[341430858,1730879440227,-788.693941,0.0003177,7]
[341430859,1730879440238,-788.693941,0.0003177,7]
[341430860,1730879440248,-151.0,0.0003177,7]
[341430861,1730879440258,-570.463046,0.0003177,7]
[341430862,1730879440268,-570.463046,0.0003177,7]
[341430863,1730879440278,-151.0,0.0003177,7]
[341430864,1730879440288,-534.073727,0.0003177,7]
[341430865,1730879440299,-534.073727,0.0003177,7]
[341430866,1730879440309,-151.0,0.0003177,7]
[341430867,1730879440323,-317.02945,0.0003177,7]
[341430868,1730879440333,-317.02945,0.0003177,7]
[341430869,1730879440342,-181.956772,0.0003177,7]
[341430871,1730879440351,-181.956772,0.0003177,7]
[341430872,1730879440362,-153.261339,0.0003177,7]
[341430873,1730879440371,-203.96632,0.0003177,7]
[341430874,1730879440380,-203.96632,0.0003177,7]
[341430875,1730879440389,-1089.292932,0.0003177,7]
[341430876,1730879440399,-1089.292932,0.0003177,7]
[341430877,1730879440410,-151.0,0.0003177,7]
[341430878,1730879440419,-152.273161,0.0003177,7]
[341430879,1730879440429,-152.273161,0.0003177,7]
[341430880,1730879440439,-830.044982,0.0003177,7]
[341430881,1730879440448,-830.044982,0.0003177,7]
[341430882,1730879440458,-160.48992455,0.00031772,2]
[341430883,1730879440468,-1411.78975623,0.00031772,2]
[341430884,1730879440477,-151.0,0.00031772,7]
[341430886,1730879440487,-151.0,0.00031772,7]
[341430888,1730879440496,-153.238948,0.00031772,7]
[341430889,1730879440506,-1087.698409,0.00031772,7]
[341430890,1730879440516,-1087.698409,0.00031772,7]
[341430891,1730879440526,-502.50620464,0.00031773,5]
[341430892,1730879440535,-260.52414203,0.00031773,5]
[341430893,1730879440545,-502.54176911,0.00031773,5]
[341430894,1730879440555,-500.0,0.00031773,2]
[341430895,1730879440565,-500.0,0.00031773,5]
[341430896,1730879440578,-151.0,0.0003178,7]
[341430898,1730879440588,-151.0,0.0003178,7]
[341430900,1730879440598,-151.0,0.0003178,7]
[341430902,1730879440608,-151.0,0.0003178,7]
[341430904,1730879440618,-151.0,0.0003178,7]
[341430906,1730879440628,-151.0,0.0003178,7]
[341430908,1730879440637,-216.292038,0.0003178,7]
[341430910,1730879440647,-216.292038,0.0003178,7]
[341430912,1730879440656,-151.0,0.0003178,7]
[341430914,1730879440666,-151.0,0.0003178,7]
[341430916,1730879440676,-151.0,0.0003178,7]
[341430918,1730879440685,-737.053366,0.0003178,7]
[341430920,1730879440695,-737.053366,0.0003178,7]
[341430922,1730879440706,-151.0,0.0003178,7]